[Event "ESTCC U50 2018"]
[Site "Walbrzych"]
[Date "2018.04.16"]
[Round "3"]
[White "Sidler, Samuel"]
[Black "Webster, Jim J"]
[Result "1-0"]
[ECO "B32"]
[WhiteElo "1833"]
[BlackElo "1769"]
[Annotator "NA RC"]
[PlyCount "38"]
[EventDate "2018.??.??"]
[EventCountry "POL"]
[SourceTitle "playchess.com"]
[Source "ChessBase"]
[SourceQuality "1"]
[WhiteTeam "Switzerland"]
[BlackTeam "Scotland"]
[WhiteTeamCountry "SUI"]
[BlackTeamCountry "SCO"]
[TimeControl "40/5400+30:1800+30"]

1. e4 {[%emt 0:00:00]} c5 {[%emt 0:00:14]} 2. Nf3 {[%emt 0:00:00]} Nc6 {[%emt 0:00:21]} 3. d4 {[%emt 0:00:00]} cxd4 {[%emt 0:00:06]} 4. c3 {[%emt 0:00:03]} d3 {[%emt 0:00:11]} 5. Bxd3 {[%emt 0:00:18]} g6 {[%emt 0:00:18]} 6. O-O {[%emt 0:00:46]} Bg7 {[%emt 0:00:06]} 7. Qe2 {[%emt 0:00:31]} d6 {[%emt 0:00:40]} 8. h3 {[%emt 0:02:11]} Nf6 {[%emt 0:01:05]} 9. Bf4 {[%emt 0:02:59]} Nd7 {[%emt 0:03:44]} 10. Nbd2 {[%emt 0:02:05]} O-O {[%emt 0:00:18]} 11. Rad1 {[%emt 0:00:34]} Nc5 {[%emt 0:09:41]} 12. Bb1 {[%emt 0:02:24]} Be6 {[%emt 0:03:12]} 13. Nc4 {[%emt 0:13:03]} Qc8 {[%emt 0:06:30]} 14. Nxd6 {[%emt 0:07:34]} exd6 {[%emt 0:01:04]} 15. Bxd6 {[%emt 0:00:13]} Rd8 16. Bxc5 Rxd1 {[%emt 0:01:46]} 17. Rxd1 {[%emt 0:00:47]} Ne5 {[%emt 0:04:13]} 18. Bd4 {[%emt 0:02:09]} Qe8 {[%emt 0:30:44]} 19. Nxe5 Bc8 1-0

[Event "ESTCC U50 2018"]
[Site "Walbrzych"]
[Date "2018.04.16"]
[Round "3"]
[White "Aird, Ian"]
[Black "Germann, Martin"]
[Result "1-0"]
[ECO "A15"]
[WhiteElo "1785"]
[BlackElo "1755"]
[Annotator "NA RC"]
[PlyCount "119"]
[EventDate "2018.??.??"]
[EventCountry "POL"]
[SourceTitle "playchess.com"]
[Source "ChessBase"]
[SourceQuality "1"]
[WhiteTeam "Scotland"]
[BlackTeam "Switzerland"]
[WhiteTeamCountry "SCO"]
[BlackTeamCountry "SUI"]
[TimeControl "40/5400+30:1800+30"]

1. c4 {[%emt 0:00:00]} Nf6 {[%emt 0:00:12]} 2. Nf3 {[%emt 0:00:00]} d6 {[%emt 0:00:16]} 3. Nc3 {[%emt 0:00:40]} g6 {[%emt 0:00:16]} 4. d4 {[%emt 0:01:27]} Bg7 {[%emt 0:00:51]} 5. Bf4 {[%emt 0:00:41]} O-O {[%emt 0:00:47]} 6. e3 {[%emt 0:00:28]} Re8 {[%emt 0:06:54]} 7. Be2 {[%emt 0:00:42]} Nbd7 {[%emt 0:06:15]} 8. h3 {[%emt 0:02:13]} b6 {[%emt 0:03:59]} 9. O-O {[%emt 0:04:07]} Bb7 {[%emt 0:00:20]} 10. Bh2 {[%emt 0:03:01]} Rc8 {[%emt 0:07:18]} 11. Qc2 {[%emt 0:03:00]} e5 {[%emt 0:01:26]} 12. Rad1 {[%emt 0:10:43]} e4 {[%emt 0:09:55]} 13. Nd2 {[%emt 0:00:48]} Qe7 {[%emt 0:02:15]} 14. b4 {[%emt 0:03:38]} Ra8 {[%emt 0:07:22]} 15. Nb5 {[%emt 0:05:11]} Nf8 {[%emt 0:10:06]} 16. c5 {[%emt 0:05:09]} Rec8 {[%emt 0:02:53]} 17. a4 {[%emt 0:05:39]} dxc5 {[%emt 0:09:01]} 18. dxc5 {[%emt 0:03:38]} Bd5 {[%emt 0:02:19]} 19. Nc3 {[%emt 0:08:45]} bxc5 {[%emt 0:00:31]} 20. Nxd5 {[%emt 0:01:46]} Nxd5 {[%emt 0:00:18]} 21. Qxe4 {[%emt 0:06:53]} Qxe4 {[%emt 0:02:07]} 22. Nxe4 {[%emt 0:00:16]} Nxb4 {[%emt 0:02:27]} 23. Nxc5 {[%emt 0:01:27]} Na2 {[%emt 0:01:46]} 24. Bf3 {[%emt 0:02:19]} Rab8 {[%emt 0:00:30]} 25. Na6 {[%emt 0:02:22]} Rb2 {[%emt 0:01:35]} 26. Nxc7 {[%emt 0:02:30]} Nc3 {[%emt 0:00:47]} 27. Nd5 {[%emt 0:04:42]} Nxd1 {[%emt 0:03:35]} 28. Ne7+ {[%emt 0:00:11]} Kh8 {[%emt 0:00:10]} 29. Nxc8 {[%emt 0:00:16]} Nc3 {[%emt 0:00:10]} 30. a5 {[%emt 0:02:14]} a6 {[%emt 0:01:10]} 31. Nd6 {[%emt 0:01:53]} Kg8 {[%emt 0:00:40]} 32. Ne4 {[%emt 0:03:14]} Nb5 {[%emt 0:01:20]} 33. Nd6 {[%emt 0:03:48]} Nc3 {[%emt 0:00:28]} 34. g4 {[%emt 0:01:07]} Ra2 {[%emt 0:01:17]} 35. Ne8 {[%emt 0:01:57]} Rxa5 {[%emt 0:02:05]} 36. Rc1 {[%emt 0:00:26]} Nb5 {[%emt 0:00:42]} 37. Nxg7 {[%emt 0:01:54]} Kxg7 {[%emt 0:00:03]} 38. Rc6 {[%emt 0:03:20]} Na7 {[%emt 0:05:14]} 39. Rb6 {[%emt 0:02:00]} Ne6 {[%emt 0:04:42]} 40. Be2 {[%emt 0:00:00]} Nc8 {[%emt 0:04:11]} 41. Rxa6 {[%emt 0:03:25]} Rxa6 {[%emt 0:00:51]} 42. Bxa6 {[%emt 0:00:03]} Ne7 {[%emt 0:00:36]} 43. Bc4 {[%emt 0:01:14]} Ng5 {[%emt 0:06:54]} 44. Kg2 {[%emt 0:00:52]} f6 {[%emt 0:02:32]} 45. Bd6 {[%emt 0:02:51]} Ng8 {[%emt 0:00:55]} 46. f3 {[%emt 0:00:49]} Nf7 {[%emt 0:00:13]} 47. Bc7 {[%emt 0:00:46]} Ne7 {[%emt 0:01:11]} 48. f4 {[%emt 0:05:01]} Ng8 {[%emt 0:00:58]} 49. Kf3 {[%emt 0:01:26]} Ne7 {[%emt 0:01:10]} 50. e4 {[%emt 0:01:31]} h6 {[%emt 0:01:09]} 51. Ke3 {[%emt 0:05:03]} Ng8 {[%emt 0:01:19]} 52. Kd4 {[%emt 0:00:32]} Ne7 {[%emt 0:00:46]} 53. Bd5 {[%emt 0:02:18]} Kf8 {[%emt 0:01:40]} 54. Kc5 {[%emt 0:02:24]} Kg7 {[%emt 0:01:40]} 55. Be6 {[%emt 0:03:32]} Kf8 {[%emt 0:01:12]} 56. Bd6 {[%emt 0:04:49]} Ke8 {[%emt 0:01:05]} 57. Bxe7 {[%emt 0:01:02]} Kxe7 {[%emt 0:00:03]} 58. Bxf7 {[%emt 0:00:27]} Kxf7 {[%emt 0:00:02]} 59. Kd6 {[%emt 0:00:12]} g5 {[%emt 0:05:53]} 60. f5 {[%emt 0:01:49]} 1-0

[Event "ESTCC U50 2018"]
[Site "Walbrzych"]
[Date "2018.04.16"]
[Round "3"]
[White "Szydelko, Kazimierz"]
[Black "Green, Michael L"]
[Result "0-1"]
[ECO "E10"]
[WhiteElo "1689"]
[BlackElo "2069"]
[Annotator "NA RC"]
[PlyCount "162"]
[EventDate "2018.??.??"]
[EventCountry "POL"]
[SourceTitle "playchess.com"]
[Source "ChessBase"]
[SourceQuality "1"]
[WhiteTeam "Poland"]
[BlackTeam "Scotland"]
[WhiteTeamCountry "POL"]
[BlackTeamCountry "SCO"]
[TimeControl "40/5400+30:1800+30"]

1. d4 {[%emt 0:00:00]} Nf6 {[%emt 0:00:19]} 2. c4 {[%emt 0:00:00]} e6 {[%emt 0:00:48]} 3. Nf3 {[%emt 0:00:00]} d6 {[%emt 0:01:06]} 4. Nc3 {[%emt 0:00:09] E10: Blumenfeld Gambit} c6 {[%emt 0:01:31]} (4... Nbd7 5. g3 e5 6. Bg2 Be7 7. O-O O-O 8. b3 c6 9. e4 a6 10. Re1 b5 11. d5 cxd5 12. cxd5 {½-½ (64) Garcia Cuenca,V (2339)-Longa Yauca,J (2353) Madrid 2016}) 5. e4 {[%emt 0:00:17]} Be7 {[%emt 0:01:50]} 6. Be2 {[%emt 0:02:42]} Na6 {[%emt 0:02:37]} 7. O-O $146 {[%emt 0:00:22]} ({Predecessor:} 7. Be3 Qa5 8. O-O Ng4 9. Bd2 e5 10. Nd5 Qd8 11. Nxe7 Qxe7 12. Bg5 f6 13. Bc1 {0-1 (48) Friedland,E (1900)-Novotny,J (2074) Pardubice 2017}) 7... Nc7 {[%emt 0:01:31]} 8. Bg5 {[%emt 0:00:39]} Nd7 {[%emt 0:01:16]} 9. Bf4 a6 {[%emt 0:02:01]} 10. a4 {[%emt 0:02:48]} O-O {[%emt 0:02:17]} 11. Qc2 {[%emt 0:13:08]} f5 {[%emt 0:03:05]} 12. e5 {[%emt 0:03:51]} d5 {[%emt 0:01:07]} 13. Rac1 {[%emt 0:01:23]} dxc4 {[%emt 0:02:26]} 14. Bxc4 {[%emt 0:00:46]} Nd5 {[%emt 0:00:19]} 15. Bxd5 {[%emt 0:05:16]} cxd5 {[%emt 0:00:40]} 16. Bd2 {[%emt 0:08:24]} Nb6 {[%emt 0:03:12]} 17. b3 {[%emt 0:00:17]} Bd7 {[%emt 0:00:48]} 18. Ne2 {[%emt 0:01:00]} Rc8 {[%emt 0:01:57]} 19. Qb2 {[%emt 0:00:53]} Na8 {[%emt 0:02:30]} 20. Rxc8 {[%emt 0:10:09]} Qxc8 {[%emt 0:00:34]} 21. Rc1 {[%emt 0:00:53]} Qe8 {[%emt 0:02:24]} 22. Rc2 {[%emt 0:05:09]} b5 {[%emt 0:06:47]} 23. a5 {[%emt 0:01:42]} Qb8 {[%emt 0:02:00]} 24. b4 {[%emt 0:01:27]} Rc8 {[%emt 0:00:46]} 25. Bc3 {[%emt 0:02:05]} Rc4 {[%emt 0:02:49]} 26. Nd2 {[%emt 0:00:19]} Rc7 $14 {[%emt 0:00:12]} 27. f4 {[%emt 0:01:28]} Qc8 {[%emt 0:00:47]} 28. Nc1 {[%emt 0:01:13]} g5 {[%emt 0:01:26]} 29. g3 {[%emt 0:00:45]} Rc6 {[%emt 0:01:31]} 30. Nd3 {[%emt 0:00:28]} Nc7 {[%emt 0:02:08]} 31. Nc5 {[%emt 0:01:59]} Ne8 {[%emt 0:01:24]} 32. Ndb3 {[%emt 0:01:13]} Ng7 {[%emt 0:01:29]} 33. Qc1 {[%emt 0:05:02]} g4 {[%emt 0:02:50]} 34. h3 {[%emt 0:01:46]} h5 {[%emt 0:00:31]} 35. hxg4 {[%emt 0:00:17]} hxg4 {[%emt 0:00:04]} 36. Rh2 {[%emt 0:00:14]} Be8 {[%emt 0:00:30]} 37. Kg2 {[%emt 0:00:28]} Bg6 {[%emt 0:05:47]} 38. Qh1 {[%emt 0:01:40]} Kf7 {[%emt 0:00:23]} 39. Rh8 {[%emt 0:01:16]} Bf8 {[%emt 0:00:56]} 40. Nd2 {[%emt 0:00:00]} Qc7 {[%emt 0:06:08]} 41. Nf1 {[%emt 0:07:53]} Ke8 {[%emt 0:01:28]} 42. Ne3 {[%emt 0:03:17]} Qf7 {[%emt 0:00:39]} 43. Rh2 {[%emt 0:05:59]} Qc7 {[%emt 0:02:07]} 44. Kf2 {[%emt 0:00:49]} Qf7 {[%emt 0:02:27]} 45. Bd2 {[%emt 0:02:47]} Kd8 {[%emt 0:01:57]} 46. Ng2 {[%emt 0:03:25]} Bh5 {[%emt 0:02:24]} 47. Qf1 {[%emt 0:01:11]} Qa7 {[%emt 0:04:23]} 48. Ne3 {[%emt 0:01:17]} Ke8 {[%emt 0:01:37]} 49. Qd3 {[%emt 0:01:59]} Kf7 {[%emt 0:04:21]} 50. Rxh5 {[%emt 0:09:36]} Nxh5 {[%emt 0:01:06]} 51. Nxf5 {[%emt 0:00:03]} Ke8 {[%emt 0:02:22]} 52. Ne3 {[%emt 0:01:23]} Bxc5 {[%emt 0:09:41]} 53. dxc5 {[%emt 0:00:28]} Qg7 {[%emt 0:01:08]} 54. Qe2 {[%emt 0:00:46]} Qg6 {[%emt 0:01:59]} 55. Qxg4 {[%emt 0:01:24]} Qxg4 {[%emt 0:00:42]} 56. Nxg4 {[%emt 0:00:02]} Kf7 {[%emt 0:00:51]} 57. Kf3 {[%emt 0:00:13]} Rc8 {[%emt 0:00:24]} 58. Ne3 {[%emt 0:02:52]} Ng7 {[%emt 0:01:28]} 59. g4 {[%emt 0:01:47]} Rh8 {[%emt 0:01:36]} 60. f5 {[%emt 0:01:26]} d4 {[%emt 0:00:57]} 61. Nc2 {[%emt 0:00:41]} exf5 {[%emt 0:00:41]} 62. Nxd4 {[%emt 0:00:19]} Rh3+ {[%emt 0:02:25]} 63. Kf4 {[%emt 0:03:59]} fxg4 {[%emt 0:00:50]} 64. c6 {[%emt 0:03:13]} Ke8 {[%emt 0:01:25]} 65. Be3 {[%emt 0:01:20]} Kd8 {[%emt 0:01:31]} 66. Ke4 {[%emt 0:02:06]} g3 {[%emt 0:02:04]} 67. Kd5 {[%emt 0:04:39]} g2 {[%emt 0:01:40]} 68. Bg1 {[%emt 0:01:01]} Ne8 {[%emt 0:02:08]} 69. Kc5 {[%emt 0:03:25]} Rh5 {[%emt 0:02:10]} 70. Kb6 {[%emt 0:00:57]} Rxe5 {[%emt 0:01:32]} 71. Kxa6 {[%emt 0:00:13]} Nc7+ {[%emt 0:00:54]} 72. Kb7 {[%emt 0:00:29]} Re7 {[%emt 0:02:22]} 73. Kb6 {[%emt 0:00:49]} Re5 {[%emt 0:01:06]} 74. a6 {[%emt 0:00:28]} Kc8 {[%emt 0:00:19]} 75. a7 {[%emt 0:01:40]} Na8+ {[%emt 0:01:18]} 76. Ka5 {[%emt 0:00:21]} Nc7 {[%emt 0:01:27]} 77. Nf3 {[%emt 0:01:19]} Rf5 {[%emt 0:01:51]} 78. Nd4 {[%emt 0:00:53]} Rf1 {[%emt 0:00:52]} 79. Nxb5 {[%emt 0:00:45]} Rxg1 {[%emt 0:00:49]} 80. Nxc7 {[%emt 0:00:45]} Kxc7 {[%emt 0:00:38]} 81. b5 {[%emt 0:00:32]} Ra1+ 0-1

[Event "ESTCC U50 2018"]
[Site "Walbrzych"]
[Date "2018.04.16"]
[Round "3"]
[White "Telenius, Kimmo"]
[Black "Daleczko, Zbigniew"]
[Result "1-0"]
[ECO "B32"]
[WhiteElo "1603"]
[BlackElo "1835"]
[Annotator "NA RC"]
[PlyCount "129"]
[EventDate "2018.??.??"]
[EventCountry "POL"]
[SourceTitle "playchess.com"]
[Source "ChessBase"]
[SourceQuality "1"]
[WhiteTeam "Finland"]
[BlackTeam "Poland"]
[WhiteTeamCountry "FIN"]
[BlackTeamCountry "POL"]
[TimeControl "40/5400+30:1800+30"]

1. e4 c5 2. Nf3 Nc6 3. d4 cxd4 4. Nxd4 g6 5. c3 Bg7 6. g3 Qb6 7. Nxc6 bxc6 8. Na3 Ba6 9. Nc4 Bxc4 10. Bxc4 Nf6 11. Qe2 O-O 12. O-O d5 13. Be3 Qc7 14. exd5 cxd5 15. Bb3 e6 16. Rac1 Qb7 17. Rc2 Nd7 18. h4 h5 19. Rd2 Ne5 20. Bd4 Nc6 21. Bxg7 Kxg7 22. g4 hxg4 23. Qxg4 Rh8 24. f4 Na5 25. Bd1 Nc4 26. Re2 Qb6+ 27. Ref2 Ne3 28. Qh3 Nxf1 29. Kxf1 Qa6+ 30. Ke1 Qc4 31. b3 Qe4+ 32. Kf1 Rh6 33. Bc2 Rxh4 34. Qxh4 Qe3 35. Rh2 Qc1+ 36. Qe1 Qxf4+ 37. Rf2 Qd6 38. Qe3 Rh8 39. Qf3 f5 40. Bd1 e5 41. Rg2 e4 42. Qe3 Rh1+ 43. Rg1 Rh2 44. a4 f4 45. Qd4+ Qf6 46. Qxa7+ Kh6 47. Qd4 Qxd4 48. cxd4 f3 49. Bxf3 exf3 50. Rg3 Rd2 51. Rxf3 Rxd4 52. a5 g5 53. a6 Rd1+ 54. Kg2 Ra1 55. Rf6+ Kh5 56. b4 d4 57. b5 Kg4 58. Rf7 Ra2+ 59. Rf2 Ra5 60. Rb2 d3 61. b6 Rxa6 62. b7 d2 63. b8=Q d1=Q 64. Qc8+ Kh4 65. Qh3# {Kh5 Qc8} 1-0

[Event "ESTCC U50 2018"]
[Site "Walbrzych"]
[Date "2018.04.17"]
[Round "4"]
[White "Grabuzova, Tatiana"]
[Black "Garcia Palermo, Carlos"]
[Result "1-0"]
[ECO "A62"]
[WhiteElo "2311"]
[BlackElo "2404"]
[Annotator "NA"]
[PlyCount "77"]
[EventDate "2018.??.??"]
[EventCountry "POL"]
[SourceTitle "playchess.com"]
[Source "ChessBase"]
[SourceQuality "1"]
[WhiteTeam "Russia"]
[BlackTeam "Italy"]
[WhiteTeamCountry "RUS"]
[BlackTeamCountry "ITA"]
[TimeControl "40/5400+30:1800+30"]

1. d4 {[%emt 0:00:00]} Nf6 {[%emt 0:03:16]} 2. c4 {[%emt 0:00:00]} e6 {[%emt 0:00:39]} 3. g3 {[%emt 0:00:00]} c5 {[%emt 0:03:02]} 4. d5 {[%emt 0:00:02]} exd5 {[%emt 0:00:33]} 5. cxd5 {[%emt 0:00:08]} d6 {[%emt 0:00:14]} 6. Nc3 {[%emt 0:00:20]} g6 {[%emt 0:00:23]} 7. Bg2 {[%emt 0:00:16]} Bg7 {[%emt 0:00:27]} 8. Nf3 {[%emt 0:00:21]} O-O {[%emt 0:00:31]} 9. O-O {[%emt 0:00:06]} Re8 {[%emt 0:03:55]} 10. Re1 {[%emt 0:01:50]} a6 {[%emt 0:05:48]} 11. a4 {[%emt 0:00:20]} Nbd7 {[%emt 0:00:15]} 12. Bf4 {[%emt 0:12:06] LiveBook: 25 Games A63: Modern Benoni: Fianchetto Variation: 9...Nbd7} (12. h3 Rb8 13. Bf4 Qc7 14. a5 b5 15. axb6 Nxb6 16. Rc1 Ne4 17. Nxe4 Rxe4 18. b3 a5 19. Nd2 Rd4 20. e4 Ba6 21. Be3 Rb4 {0-1 (38) Xiong,J (2652)-Vachier Lagrave,M (2795) chess.com INT 2017}) 12... Nh5 {[%emt 0:05:04]} 13. Bg5 {[%emt 0:02:39]} Qc7 {[%emt 0:01:02]} 14. Qd2 {[%emt 0:03:38]} c4 $146 {[%emt 0:04:06]} ({Predecessor:} 14... Rb8 15. Rac1 Ne5 16. Nxe5 Bxe5 17. e4 Bg7 18. h3 b5 19. axb5 axb5 {1-0 (28) Nedilko,V (2383)-Simantsev,M (2486) Lutsk 2018}) 15. g4 {[%emt 0:20:57]} Nhf6 {[%emt 0:00:21]} 16. Qf4 {[%emt 0:00:29]} Rb8 {[%emt 0:11:40]} 17. Nd2 {[%emt 0:05:51]} (17. h3 $14) 17... b5 {[%emt 0:04:06]} 18. axb5 {[%emt 0:11:47]} axb5 {[%emt 0:03:09]} 19. Rac1 {[%emt 0:02:28]} h5 {[%emt 0:22:02]} 20. h3 {[%emt 0:14:02]} hxg4 {[%emt 0:00:22]} 21. hxg4 {[%emt 0:00:03] [#]} Nh7 $17 {[%emt 0:01:09]} 22. Nf3 {[%emt 0:09:16]} Nc5 {[%emt 0:09:31]} 23. Bh6 {[%emt 0:01:00]} b4 {[%emt 0:01:23]} 24. Bxg7 {[%emt 0:00:53]} Kxg7 {[%emt 0:00:05]} 25. Qxc4 {[%emt 0:01:07]} Qb6 {[%emt 0:04:33]} 26. Nd1 {[%emt 0:03:05]} Re4 {[%emt 0:00:39]} 27. Qc2 {[%emt 0:01:42]} Rxg4 {[%emt 0:05:37]} 28. Ne3 {[%emt 0:02:04]} Rf4 {[%emt 0:00:18]} 29. Nc4 {[%emt 0:00:27]} Qd8 {[%emt 0:00:09]} 30. Nxd6 {[%emt 0:02:20]} Qxd6 {[%emt 0:01:48]} 31. Qxc5 {[%emt 0:00:05]} Qf6 {[%emt 0:00:54]} 32. Qc7 {[%emt 0:02:16]} Ra8 {[%emt 0:00:43]} 33. Qc6 {[%emt 0:00:34]} Qxc6 {[%emt 0:00:27]} 34. dxc6 {[%emt 0:00:20]} Nf8 {[%emt 0:05:11]} 35. e3 {[%emt 0:00:50]} Rg4 {[%emt 0:01:17]} 36. Ne5 {[%emt 0:01:06]} Rh4 {[%emt 0:00:57]} 37. Red1 {[%emt 0:01:33]} Ne6 {[%emt 0:02:37]} 38. c7 {[%emt 0:01:35]} Ra7 {[%emt 0:00:17]} 39. Rd8 {[%emt 0:00:24]} 1-0

[Event "ESTCC U50 2018"]
[Site "Walbrzych"]
[Date "2018.04.17"]
[Round "4"]
[White "Deleyn, Gunter"]
[Black "Wagner-Michel, Annett"]
[Result "1/2-1/2"]
[ECO "A00"]
[WhiteElo "2200"]
[BlackElo "2104"]
[Annotator "NA"]
[PlyCount "92"]
[EventDate "2018.??.??"]
[EventCountry "POL"]
[SourceTitle "playchess.com"]
[Source "ChessBase"]
[SourceQuality "1"]
[WhiteTeam "Belgium"]
[BlackTeam "Germany"]
[WhiteTeamCountry "BEL"]
[BlackTeamCountry "GER"]
[TimeControl "40/5400+30:1800+30"]

1. g3 {[%emt 0:00:00]} e5 {[%emt 0:00:05]} 2. Bg2 {[%emt 0:00:00]} Nf6 {[%emt 0:00:06]} 3. d3 {[%emt 0:00:00]} d5 {[%emt 0:00:12]} 4. Nf3 {[%emt 0:00:47]} Bd6 {[%emt 0:01:05]} 5. O-O {[%emt 0:01:31]} O-O {[%emt 0:01:26]} 6. Nc3 {[%emt 0:02:37]} c6 {[%emt 0:01:31]} 7. e4 {[%emt 0:04:04] LiveBook: 106 Games} dxe4 {[%emt 0:09:16]} 8. Nxe4 {[%emt 0:01:13]} Nxe4 {[%emt 0:01:15]} 9. dxe4 {[%emt 0:00:06]} Qc7 {[%emt 0:01:47] A00: Irregular Openings} (9... Qe7 10. Nh4 g6 11. Qe2 Na6 12. Be3 Be6 13. Nf3 f6 14. Rfd1 Rfd8 15. c3 Nc7 16. b3 Bc5 17. h4 {½-½ (38) Jones,G (2575)-Howell,D (2611) Halifax 2010}) 10. Be3 $146 {[%emt 0:05:14]} ({Predecessor:} 10. Nd2 Be6 11. Re1 Na6 12. a4 Rfd8 13. Bf1 Nc5 14. a5 Be7 15. Qf3 Bg5 16. Qc3 Qe7 17. f4 exf4 {0-1 (47) Vujadinovic,G (2367)-Bodiroga,P (2410) Sombor 2009}) 10... Bg4 {[%emt 0:05:54]} 11. Qd3 {[%emt 0:06:47]} Be7 {[%emt 0:04:16]} 12. Qc3 {[%emt 0:00:37]} Nd7 {[%emt 0:09:36]} 13. h3 {[%emt 0:04:59]} Be6 {[%emt 0:01:21]} 14. Ng5 {[%emt 0:02:01]} Bxg5 {[%emt 0:03:42]} 15. Bxg5 {[%emt 0:00:05]} c5 {[%emt 0:12:24]} 16. Rfd1 {[%emt 0:02:45]} f6 {[%emt 0:02:22]} 17. Be3 {[%emt 0:00:07]} Rfd8 {[%emt 0:01:07]} 18. a4 {[%emt 0:04:47]} a5 {[%emt 0:07:01]} 19. f4 $14 {[%emt 0:12:29]} Rac8 {[%emt 0:05:04]} 20. Rd2 {[%emt 0:05:06]} exf4 {[%emt 0:07:09]} 21. gxf4 {[%emt 0:00:13]} b6 {[%emt 0:01:09]} 22. Rad1 {[%emt 0:02:25]} Nb8 {[%emt 0:03:07]} 23. e5 {[%emt 0:01:31]} Rxd2 {[%emt 0:01:21]} 24. Rxd2 {[%emt 0:00:22]} fxe5 {[%emt 0:00:10]} 25. fxe5 {[%emt 0:00:06]} Rd8 {[%emt 0:01:08]} 26. Bf4 {[%emt 0:01:50]} Rxd2 {[%emt 0:00:42]} 27. Qxd2 {[%emt 0:00:06]} Qd7 {[%emt 0:00:57]} 28. Qxd7 {[%emt 0:02:23]} Nxd7 {[%emt 0:00:10]} 29. Kf2 {[%emt 0:00:33]} Kf7 {[%emt 0:01:17]} 30. h4 {[%emt 0:03:11]} h6 {[%emt 0:00:23]} 31. Ke3 {[%emt 0:03:03]} g5 {[%emt 0:00:55]} 32. hxg5 {[%emt 0:01:00]} hxg5 {[%emt 0:00:01]} 33. Bxg5 {[%emt 0:04:54]} Nxe5 {[%emt 0:00:03]} 34. Ke4 {[%emt 0:00:18]} Nd7 {[%emt 0:02:22]} 35. Bd8 {[%emt 0:01:14]} Ke8 {[%emt 0:04:26]} 36. Bc7 {[%emt 0:01:57]} Ke7 {[%emt 0:00:30]} 37. Ke3 {[%emt 0:04:02]} Bf5 {[%emt 0:01:25]} 38. Kd2 {[%emt 0:05:11]} Ke6 {[%emt 0:08:40]} 39. Kc3 {[%emt 0:04:28]} Nf6 {[%emt 0:01:58]} 40. Bxb6 {[%emt 0:00:00]} Nd5+ {[%emt 0:00:09]} 41. Bxd5+ {[%emt 0:00:41]} Kxd5 {[%emt 0:00:10]} 42. Bxa5 {[%emt 0:00:06]} c4 {[%emt 0:02:23]} 43. Bb6 {[%emt 0:00:54]} Be6 {[%emt 0:01:30]} 44. Kb4 {[%emt 0:00:27]} Kc6 {[%emt 0:00:13]} 45. Bd8 {[%emt 0:00:25]} Kb7 {[%emt 0:00:25]} 46. Kc5 {[%emt 0:00:39]} Bf7 1/2-1/2

[Event "ESTCC U50 2018"]
[Site "Walbrzych"]
[Date "2018.04.17"]
[Round "4"]
[White "Burchardt, Brigitte"]
[Black "Rooze, Jan"]
[Result "0-1"]
[ECO "B40"]
[WhiteElo "2166"]
[BlackElo "2307"]
[Annotator "NA"]
[PlyCount "84"]
[EventDate "2018.??.??"]
[EventCountry "POL"]
[SourceTitle "playchess.com"]
[Source "ChessBase"]
[SourceQuality "1"]
[WhiteTeam "Germany"]
[BlackTeam "Belgium"]
[WhiteTeamCountry "GER"]
[BlackTeamCountry "BEL"]
[TimeControl "40/5400+30:1800+30"]

1. e4 c5 2. Nf3 e6 3. Nc3 Nc6 4. g3 d6 5. Bg2 Bd7 6. O-O Be7 7. b3 Nf6 $11 8. Bb2 a6 9. d3 Rc8 10. Ne2 Qc7 11. Re1 O-O 12. Nf4 Ng4 13. c3 Qb6 14. Qe2 Nge5 15. Nd2 Qa7 16. Kh1 b5 17. Red1 b4 18. cxb4 Nxb4 19. Nc4 Nbc6 20. Nh3 Nd4 21. Bxd4 cxd4 22. f4 Nc6 23. Nf2 Rfe8 24. Qd2 Qb8 25. Rf1 Na7 26. Nd1 Bc6 27. Qf2 Qb7 28. Ndb2 d5 29. Na5 Qb5 30. Nxc6 Nxc6 31. f5 Bf6 32. fxe6 fxe6 33. exd5 exd5 34. Qf5 Rcd8 35. Rae1 Re3 36. Rxe3 dxe3 37. Nd1 Nd4 38. Qg4 e2 39. Rxf6 e1=Q+ 40. Rf1 Qe5 41. Nc3 Qxd3 42. Nxd5 Qxf1+ 0-1

[Event "ESTCC U50 2018"]
[Site "Walbrzych"]
[Date "2018.04.17"]
[Round "4"]
[White "Viljava, Tapani"]
[Black "Wielosz, Jaroslaw"]
[Result "1-0"]
[ECO "A20"]
[WhiteElo "2162"]
[BlackElo "2038"]
[Annotator "NA"]
[PlyCount "85"]
[EventDate "2018.??.??"]
[EventCountry "POL"]
[SourceTitle "playchess.com"]
[Source "ChessBase"]
[SourceQuality "1"]
[WhiteTeam "Finland"]
[BlackTeam "Poland"]
[WhiteTeamCountry "FIN"]
[BlackTeamCountry "POL"]
[TimeControl "40/5400+30:1800+30"]

1. c4 {[%emt 0:00:17]} e5 {[%emt 0:00:12]} 2. g3 {[%emt 0:03:56]} Nf6 {[%emt 0:00:19]} 3. Bg2 {[%emt 0:00:14]} Nc6 {[%emt 0:01:57]} 4. Nc3 {[%emt 0:01:33]} Bb4 {[%emt 0:01:02]} 5. Nd5 {[%emt 0:05:13]} Nxd5 {[%emt 0:02:47]} 6. cxd5 {[%emt 0:01:31]} Ne7 {[%emt 0:00:35]} 7. Nf3 {[%emt 0:14:47]} Ng6 {[%emt 0:01:54]} 8. O-O {[%emt 0:10:21]} O-O {[%emt 0:05:51]} 9. d4 {[%emt 0:04:37]} d6 {[%emt 0:06:45]} 10. Qa4 {[%emt 0:04:19]} c5 {[%emt 0:13:13]} 11. dxc6 {[%emt 0:00:40]} Qa5 {[%emt 0:05:16]} 12. Qxa5 {[%emt 0:01:16]} Bxa5 {[%emt 0:00:06]} 13. dxe5 {[%emt 0:02:57]} dxe5 $18 {[%emt 0:01:46]} 14. Nxe5 {[%emt 0:01:09]} Nxe5 {[%emt 0:03:33]} 15. cxb7 {[%emt 0:00:08]} Bxb7 {[%emt 0:06:27]} 16. Bxb7 {[%emt 0:00:06]} Rab8 {[%emt 0:00:09]} 17. Bd5 {[%emt 0:04:36]} Rfd8 {[%emt 0:04:00]} 18. Bb3 {[%emt 0:09:27]} Nc6 {[%emt 0:05:52]} 19. Bg5 {[%emt 0:01:06]} Re8 {[%emt 0:04:10]} 20. Be3 {[%emt 0:03:56]} Bb6 {[%emt 0:03:44]} 21. Bxb6 {[%emt 0:11:07]} Rxb6 {[%emt 0:00:07]} 22. e3 {[%emt 0:00:15]} Na5 {[%emt 0:03:39]} 23. Bd5 {[%emt 0:01:07]} Rxb2 {[%emt 0:01:54]} 24. Rab1 {[%emt 0:01:00]} Rb6 {[%emt 0:08:01]} 25. Rfc1 {[%emt 0:03:55]} g6 {[%emt 0:01:43]} 26. Rxb6 {[%emt 0:00:11]} axb6 {[%emt 0:00:06]} 27. Rc7 {[%emt 0:00:29]} Rf8 {[%emt 0:01:00]} 28. a4 {[%emt 0:02:35]} Kg7 {[%emt 0:02:05]} 29. f4 {[%emt 0:02:14]} Kf6 {[%emt 0:03:03]} 30. Kf2 {[%emt 0:03:37]} h6 {[%emt 0:00:17]} 31. e4 {[%emt 0:01:01]} g5 {[%emt 0:00:39]} 32. Kf3 {[%emt 0:00:32]} gxf4 {[%emt 0:00:57]} 33. gxf4 {[%emt 0:00:03]} Kg6 {[%emt 0:02:35]} 34. f5+ {[%emt 0:01:37]} Kg5 {[%emt 0:02:03]} 35. Bxf7 {[%emt 0:01:22]} Kf6 {[%emt 0:01:26]} 36. Bd5 {[%emt 0:00:55]} Ke5 {[%emt 0:00:15]} 37. Re7+ {[%emt 0:01:40]} Kd4 {[%emt 0:00:52]} 38. Re6 {[%emt 0:00:13]} Rc8 {[%emt 0:01:10]} 39. f6 {[%emt 0:00:40]} Rc1 {[%emt 0:00:46]} 40. Rxb6 {[%emt 0:00:00]} Rf1+ {[%emt 0:03:58]} 41. Ke2 {[%emt 0:03:14]} Rf4 {[%emt 0:02:21]} 42. f7 {[%emt 0:02:02]} Nc4 {[%emt 0:01:40]} 43. Rb4 {[%emt 0:00:08]} 1-0